[Event "NJSK 2026 Jeugd B"]
[Site "Helmond, Netherlands"]
[Date "2026.04.25"]
[Round "1.7"]
[White "Zecha, Oscar"]
[Black "De Jong, Lode"]
[Result "0-1"]
[TimeControl "90min/40moves + 30min + 30sec/move"]
[WhiteTitle "-"]
[BlackTitle "-"]
[WhiteFideId "1073826"]
[BlackFideId "40101860"]
[WhiteElo "2120"]
[BlackElo "1902"]

1. e4 {[%clk 01:30:57]} {[%emt 00:00:02]} c5 {[%clk 01:30:55]} {[%emt
00:00:06]} 2. Nf3 {[%clk 01:31:23]} {[%emt 00:00:04]} d6 {[%clk 01:31:22]}
{[%emt 00:00:03]} 3. d4 {[%clk 01:31:49]} {[%emt 00:00:04]} cxd4 {[%clk
01:31:50]} {[%emt 00:00:03]} 4. Nxd4 {[%clk 01:32:14]} {[%emt 00:00:04]} Nf6
{[%clk 01:32:15]} {[%emt 00:00:04]} 5. Nc3 {[%clk 01:32:40]} {[%emt 00:00:04]}
a6 {[%clk 01:32:41]} {[%emt 00:00:04]} 6. f3 {[%clk 01:33:07]} {[%emt
00:00:03]} e5 {[%clk 01:33:08]} {[%emt 00:00:04]} 7. Nb3 {[%clk 01:33:34]}
{[%emt 00:00:03]} Be7 {[%clk 01:33:32]} {[%emt 00:00:05]} 8. Be3 {[%clk
01:34:01]} {[%emt 00:00:04]} Be6 {[%clk 01:33:57]} {[%emt 00:00:05]} 9. Qd2
{[%clk 01:34:27]} {[%emt 00:00:04]} h5 {[%clk 01:34:23]} {[%emt 00:00:05]} 10.
O-O-O {[%clk 01:34:51]} {[%emt 00:00:05]} Nbd7 {[%clk 01:34:48]} {[%emt
00:00:03]} 11. Kb1 {[%clk 01:35:16]} {[%emt 00:00:05]} Rc8 {[%clk 01:35:14]}
{[%emt 00:00:04]} 12. g3 {[%clk 01:35:36]} {[%emt 00:00:11]} Qc7 {[%clk
01:19:46]} {[%emt 00:15:57]} 13. Qf2 {[%clk 01:26:36]} {[%emt 00:09:30]} b5
{[%clk 01:16:54]} {[%emt 00:03:22]} 14. Nd5 {[%clk 01:25:27]} {[%emt 00:01:38]}
Nxd5 {[%clk 01:12:08]} {[%emt 00:05:17]} 15. exd5 {[%clk 01:25:55]} {[%emt
00:00:02]} Bf5 {[%clk 01:12:30]} {[%emt 00:00:08]} 16. Bd3 {[%clk 01:26:14]}
{[%emt 00:00:11]} Bxd3 {[%clk 01:12:53]} {[%emt 00:00:07]} 17. Rxd3 {[%clk
01:25:45]} {[%emt 00:00:59]} Nf6 {[%clk 01:09:12]} {[%emt 00:04:10]} 18. Rc1
{[%clk 01:17:37]} {[%emt 00:08:37]} O-O {[%clk 01:07:11]} {[%emt 00:02:32]} 19.
h3 {[%clk 01:08:17]} {[%emt 00:09:49]} Rfe8 {[%clk 00:50:32]} {[%emt 00:17:09]}
20. g4 {[%clk 01:05:33]} {[%emt 00:03:15]} Qb7 {[%clk 00:36:29]} {[%emt
00:14:33]} 21. Rcd1 {[%clk 00:52:47]} {[%emt 00:13:16]} Bd8 {[%clk 00:35:46]}
{[%emt 00:01:12]} 22. g5 {[%clk 00:39:49]} {[%emt 00:13:28]} Nd7 {[%clk
00:33:58]} {[%emt 00:02:18]} 23. Nd2 {[%clk 00:39:16]} {[%emt 00:01:02]} Be7
{[%clk 00:23:04]} {[%emt 00:11:24]} 24. Ne4 {[%clk 00:39:01]} {[%emt 00:00:45]}
Rc4 {[%clk 00:23:25]} {[%emt 00:00:09]} 25. b3 {[%clk 00:35:19]} {[%emt
00:04:13]} Rc7 {[%clk 00:23:24]} {[%emt 00:00:30]} 26. f4 {[%clk 00:32:07]}
{[%emt 00:03:42]} exf4 {[%clk 00:18:23]} {[%emt 00:05:31]} 27. Bxf4 {[%clk
00:23:09]} {[%emt 00:09:28]} Nc5 {[%clk 00:17:19]} {[%emt 00:01:35]} 28. Re3
{[%clk 00:23:08]} {[%emt 00:00:30]} Nxe4 {[%clk 00:16:43]} {[%emt 00:01:06]} 29.
Rxe4 {[%clk 00:23:34]} {[%emt 00:00:02]} Rec8 {[%clk 00:17:07]} {[%emt
00:00:08]} 30. Qe2 {[%clk 00:17:27]} {[%emt 00:06:37]} Bf8 {[%clk 00:16:19]}
{[%emt 00:01:19]} 31. g6 {[%clk 00:16:04]} {[%emt 00:01:53]} fxg6 {[%clk
00:11:02]} {[%emt 00:05:46]} 32. Re8 {[%clk 00:11:54]} {[%emt 00:04:40]} Re7
{[%clk 00:03:40]} {[%emt 00:07:52]} 33. Qxe7 {[%clk 00:09:50]} {[%emt
00:02:33]} Qxe7 {[%clk 00:04:00]} {[%emt 00:00:11]} 34. Rxc8 {[%clk 00:10:09]}
{[%emt 00:00:11]} g5 {[%clk 00:02:48]} {[%emt 00:01:42]} 35. Bc1 {[%clk
00:06:44]} {[%emt 00:03:55]} Qd7 {[%clk 00:02:47]} {[%emt 00:00:31]} 36. Ra8
{[%clk 00:05:38]} {[%emt 00:01:36]} Qxh3 {[%clk 00:01:24]} {[%emt 00:01:53]} 37.
Re1 {[%clk 00:01:22]} {[%emt 00:04:45]} g4 {[%clk 00:00:57]} {[%emt 00:00:58]}
38. Ba3 {[%clk 00:00:41]} {[%emt 00:01:11]} g3 {[%clk 00:00:35]} {[%emt
00:00:53]} 39. Bxd6 {[%clk 00:00:54]} {[%emt 00:00:16]} g2 {[%clk 00:01:03]}
{[%emt 00:00:02]} 40. Bxf8 {[%clk 00:00:31]} {[%emt 00:00:53]} Kf7 {[%emt
00:12:37]} 41. Rae8 {[%clk 00:19:17]} g1=Q {[%clk 00:19:54]} {[%emt 00:11:14]}
42. Rxg1 {[%clk 00:19:30]} {[%emt 00:00:17]} Kxe8 {[%clk 00:20:20]} {[%emt
00:00:05]} 43. Bxg7 {[%clk 00:19:55]} {[%emt 00:00:04]} Qe3 {[%clk 00:14:42]}
{[%emt 00:06:08]} 44. Rd1 {[%clk 00:07:55]} {[%emt 00:12:30]} h4 {[%clk
00:13:54]} {[%emt 00:01:18]} 45. d6 {[%clk 00:06:38]} {[%emt 00:01:46]} Kd7
{[%clk 00:14:20]} {[%emt 00:00:05]} 46. Bd4 {[%clk 00:02:53]} {[%emt 00:04:14]}
Qe2 {[%clk 00:11:41]} {[%emt 00:03:10]} 47. Rg1 {[%clk 00:02:19]} {[%emt
00:01:03]} h3 {[%clk 00:09:31]} {[%emt 00:02:40]} 48. Rg7+ {[%clk 00:02:11]}
{[%emt 00:00:38]} Kxd6 {[%clk 00:09:38]} {[%emt 00:00:23]} 49. Rg6+ {[%clk
00:01:22]} {[%emt 00:01:19]} Ke7 {[%clk 00:07:53]} {[%emt 00:02:15]} 50. Bg1
{[%clk 00:00:49]} {[%emt 00:01:03]} Kf7 {[%clk 00:07:48]} {[%emt 00:00:35]} 51.
Rh6 {[%clk 00:00:46]} {[%emt 00:00:33]} Kg7 {[%clk 00:08:08]} {[%emt 00:00:10]}
52. Rd6 {[%clk 00:00:33]} {[%emt 00:00:44]} Qe1+ {[%clk 00:08:16]} {[%emt
00:00:22]} 53. Kb2 {[%clk 00:00:55]} {[%emt 00:00:07]} Qxg1 {[%clk 00:08:40]}
{[%emt 00:00:06]} 54. Rd7+ {[%clk 00:00:59]} {[%emt 00:00:27]} Kg8 {[%clk
00:08:42]} {[%emt 00:00:28]} 55. Rd8+ {[%clk 00:01:21]} {[%emt 00:00:07]} Kh7
{[%clk 00:09:07]} {[%emt 00:00:05]} 56. Rd7+ {[%clk 00:01:02]} {[%emt
00:00:50]} Qg7+ {[%clk 00:09:18]} {[%emt 00:00:19]} 57. Rxg7+ {[%clk 00:01:26]}
{[%emt 00:00:06]} Kxg7 {[%clk 00:09:44]} {[%emt 00:00:05]} 0-1

[Event "NJSK 2026 Jeugd B"]
[Site "Helmond, Netherlands"]
[Date "2026.04.25"]
[Round "1.8"]
[White "Okita, Shinsaku"]
[Black "Groenewoud, Joel"]
[Result "0-1"]
[TimeControl "90min/40moves + 30min + 30sec/move"]
[WhiteTitle "-"]
[BlackTitle "-"]
[WhiteFideId "1094823"]
[BlackFideId "1087746"]
[WhiteElo "1899"]
[BlackElo "2114"]

1. d4 {[%clk 01:30:59]} Nf6 {[%clk 01:30:04]} {[%emt 00:00:57]} 2. Nf3 {[%clk
01:30:44]} {[%emt 00:00:44]} g6 {[%clk 01:29:46]} {[%emt 00:00:49]} 3. Nc3
{[%clk 01:30:59]} {[%emt 00:00:15]} d5 {[%clk 01:29:31]} {[%emt 00:00:45]} 4.
Bf4 {[%clk 01:30:11]} {[%emt 00:01:19]} c6 {[%clk 01:29:21]} {[%emt 00:00:39]}
5. e3 {[%clk 01:27:17]} {[%emt 00:03:24]} Bg7 {[%clk 01:28:10]} {[%emt
00:01:40]} 6. h3 {[%clk 01:26:33]} {[%emt 00:01:14]} O-O {[%clk 01:26:29]}
{[%emt 00:02:10]} 7. Be2 {[%clk 01:23:24]} {[%emt 00:03:40]} b5 {[%clk
01:23:33]} {[%emt 00:03:27]} 8. a4 {[%clk 01:17:58]} {[%emt 00:05:57]} b4
{[%clk 01:19:31]} {[%emt 00:04:31]} 9. Nb1 {[%clk 01:15:00]} {[%emt 00:03:28]}
a5 {[%clk 01:16:25]} {[%emt 00:03:36]} 10. O-O {[%clk 01:02:22]} {[%emt
00:13:07]} Ba6 {[%clk 01:13:56]} {[%emt 00:02:59]} 11. Nbd2 {[%clk 00:58:19]}
{[%emt 00:04:34]} Bxe2 {[%clk 01:03:34]} {[%emt 00:10:52]} 12. Qxe2 {[%clk
00:58:43]} {[%emt 00:00:06]} Nbd7 {[%clk 01:01:13]} {[%emt 00:02:50]} 13. Ne5
{[%clk 00:45:09]} {[%emt 00:14:04]} c5 {[%clk 00:47:55]} {[%emt 00:13:49]} 14.
dxc5 {[%clk 00:38:32]} {[%emt 00:07:08]} Nxc5 {[%clk 00:41:35]} {[%emt
00:06:48]} 15. Qb5 {[%clk 00:36:01]} {[%emt 00:03:02]} Nfe4 {[%clk 00:36:09]}
{[%emt 00:05:56]} 16. Nxe4 {[%clk 00:34:13]} {[%emt 00:02:19]} Nxe4 {[%clk
00:34:36]} {[%emt 00:02:02]} 17. Rad1 {[%clk 00:31:17]} {[%emt 00:03:25]} e6
{[%clk 00:25:17]} {[%emt 00:09:48]} 18. f3 {[%clk 00:24:09]} {[%emt 00:07:40]}
Nd6 {[%clk 00:21:55]} {[%emt 00:03:51]} 19. Qd3 {[%clk 00:21:16]} {[%emt
00:03:23]} Rc8 {[%clk 00:20:50]} {[%emt 00:01:35]} 20. b3 {[%clk 00:16:08]}
{[%emt 00:05:40]} Rc3 {[%clk 00:18:49]} {[%emt 00:02:30]} 21. Qe2 {[%clk
00:15:36]} {[%emt 00:01:01]} Nf5 {[%clk 00:14:25]} {[%emt 00:04:55]} 22. Rd3
{[%clk 00:12:49]} {[%emt 00:03:18]} Qc8 {[%clk 00:13:13]} {[%emt 00:01:41]} 23.
Rc1 {[%clk 00:10:47]} {[%emt 00:02:32]} f6 {[%clk 00:10:41]} {[%emt 00:03:02]}
24. Ng4 {[%clk 00:09:04]} {[%emt 00:02:14]} Qc5 {[%clk 00:09:32]} {[%emt
00:01:38]} 25. Rxc3 {[%clk 00:08:26]} {[%emt 00:01:08]} Qxc3 {[%clk 00:09:22]}
{[%emt 00:00:39]} 26. e4 {[%clk 00:07:14]} {[%emt 00:01:43]} Nd4 {[%clk
00:08:50]} {[%emt 00:01:02]} 27. Qf2 {[%clk 00:06:46]} {[%emt 00:00:59]} h5
{[%clk 00:06:52]} {[%emt 00:02:28]} 28. Ne3 {[%clk 00:05:24]} {[%emt 00:01:52]}
Qc5 {[%clk 00:06:44]} {[%emt 00:00:36]} 29. exd5 {[%clk 00:03:58]} {[%emt
00:01:57]} e5 {[%clk 00:06:41]} {[%emt 00:00:33]} 30. Bg3 {[%clk 00:03:26]}
{[%emt 00:01:02]} f5 {[%clk 00:06:12]} {[%emt 00:00:58]} 31. f4 {[%clk
00:03:09]} {[%emt 00:00:47]} Bh6 {[%clk 00:05:35]} {[%emt 00:01:07]} 32. Re1
{[%clk 00:02:42]} {[%emt 00:00:58]} exf4 {[%clk 00:03:39]} {[%emt 00:02:25]} 33.
Bxf4 {[%clk 00:02:48]} {[%emt 00:00:24]} Bxf4 {[%clk 00:03:59]} {[%emt
00:00:10]} 34. Qxf4 {[%clk 00:03:07]} {[%emt 00:00:12]} Nxc2 {[%clk 00:02:26]}
{[%emt 00:02:02]} 35. Re2 {[%clk 00:02:58]} {[%emt 00:00:39]} Nd4 {[%clk
00:02:24]} {[%emt 00:00:32]} 36. Rf2 {[%clk 00:02:50]} {[%emt 00:00:39]} Re8
{[%clk 00:02:33]} {[%emt 00:00:20]} 37. Qg3 {[%clk 00:02:49]} {[%emt 00:00:30]}
Kh7 {[%clk 00:02:12]} {[%emt 00:00:53]} 38. Kh2 {[%clk 00:02:26]} {[%emt
00:00:53]} Re4 {[%clk 00:02:19]} {[%emt 00:00:22]} 39. Nc4 {[%clk 00:01:31]}
{[%emt 00:01:26]} Nxb3 {[%clk 00:01:52]} {[%emt 00:00:56]} 40. d6 {[%clk
00:01:03]} {[%emt 00:00:59]} Rxc4 {[%clk 00:01:46]} {[%emt 00:00:35]} 41. d7
{[%clk 00:01:00]} {[%emt 00:00:34]} Rd4 {[%clk 00:28:44]} {[%emt 00:03:31]} 42.
Qxb3 {[%clk 00:29:22]} {[%emt 00:02:08]} Qd6+ {[%clk 00:28:51]} {[%emt
00:00:24]} 43. g3 {[%clk 00:29:30]} {[%emt 00:00:23]} h4 {[%clk 00:27:34]}
{[%emt 00:01:45]} 44. Qf7+ {[%clk 00:28:55]} {[%emt 00:01:06]} Kh6 {[%clk
00:27:50]} {[%emt 00:00:13]} 45. Rf4 {[%clk 00:27:51]} {[%emt 00:01:34]} Rd2+
{[%clk 00:27:45]} {[%emt 00:00:35]} 46. Kg1 {[%clk 00:27:55]} {[%emt 00:00:26]}
Qc5+ {[%clk 00:28:07]} {[%emt 00:00:08]} 0-1

[Event "NJSK 2026 Jeugd B"]
[Site "Helmond, Netherlands"]
[Date "2026.04.25"]
[Round "1.9"]
[White "Teianu, Maxim"]
[Black "Van Haaften, Jelle"]
[Result "1-0"]
[TimeControl "90min/40moves + 30min + 30sec/move"]
[WhiteTitle "-"]
[BlackTitle "-"]
[WhiteFideId "40101967"]
[BlackFideId "1096281"]
[WhiteElo "2024"]
[BlackElo "1882"]

1. d4 {[%clk 01:30:57]} {[%emt 00:00:03]} Nf6 {[%clk 01:30:54]} {[%emt
00:00:06]} 2. c4 {[%clk 01:31:24]} {[%emt 00:00:04]} e6 {[%clk 01:31:15]}
{[%emt 00:00:08]} 3. Nf3 {[%clk 01:31:50]} {[%emt 00:00:05]} d5 {[%clk
01:31:40]} {[%emt 00:00:05]} 4. Nc3 {[%clk 01:32:15]} {[%emt 00:00:05]} Bb4
{[%clk 01:32:03]} {[%emt 00:00:06]} 5. cxd5 {[%clk 01:32:20]} {[%emt 00:00:27]}
exd5 {[%clk 01:32:26]} {[%emt 00:00:10]} 6. Bg5 {[%clk 01:32:43]} {[%emt
00:00:03]} h6 {[%clk 01:32:49]} {[%emt 00:00:07]} 7. Bh4 {[%clk 01:32:46]}
{[%emt 00:00:27]} O-O {[%clk 01:33:07]} {[%emt 00:00:11]} 8. e3 {[%clk
01:14:06]} {[%emt 00:19:10]} Bf5 {[%clk 01:33:31]} {[%emt 00:00:06]} 9. Qb3
{[%clk 01:12:19]} {[%emt 00:02:18]} Bxc3+ {[%clk 01:23:52]} {[%emt 00:10:08]}
10. bxc3 {[%clk 01:11:20]} {[%emt 00:01:28]} Nbd7 {[%clk 01:23:01]} {[%emt
00:01:22]} 11. Be2 {[%clk 01:09:29]} {[%emt 00:02:21]} g5 {[%clk 01:10:03]}
{[%emt 00:13:28]} 12. Bg3 {[%clk 01:09:43]} {[%emt 00:00:16]} Nb6 {[%clk
01:02:57]} {[%emt 00:07:36]} 13. Nd2 {[%clk 01:04:39]} {[%emt 00:05:33]} Ne4
{[%clk 00:45:45]} {[%emt 00:17:43]} 14. Nxe4 {[%clk 01:01:00]} {[%emt
00:04:08]} Bxe4 {[%clk 00:45:34]} {[%emt 00:00:40]} 15. O-O {[%clk 01:00:53]}
{[%emt 00:00:39]} Qe7 {[%clk 00:41:34]} {[%emt 00:04:29]} 16. Rfe1 {[%clk
00:34:53]} {[%emt 00:26:29]} Kg7 {[%clk 00:27:07]} {[%emt 00:14:59]} 17. c4
{[%clk 00:28:33]} {[%emt 00:06:49]} dxc4 {[%clk 00:19:37]} {[%emt 00:08:00]} 18.
Bxc4 {[%clk 00:28:58]} {[%emt 00:00:05]} Nxc4 {[%clk 00:15:03]} {[%emt
00:05:04]} 19. Qxc4 {[%clk 00:29:22]} {[%emt 00:00:06]} c6 {[%clk 00:14:59]}
{[%emt 00:00:35]} 20. f3 {[%clk 00:29:12]} {[%emt 00:00:40]} Bd5 {[%clk
00:14:53]} {[%emt 00:00:36]} 21. Qc2 {[%clk 00:27:28]} {[%emt 00:02:12]} Rac8
{[%clk 00:08:42]} {[%emt 00:06:43]} 22. e4 {[%clk 00:27:22]} {[%emt 00:00:35]}
Be6 {[%clk 00:09:08]} {[%emt 00:00:04]} 23. Qb2 {[%clk 00:27:20]} {[%emt
00:00:31]} f6 {[%clk 00:08:20]} {[%emt 00:01:19]} 24. Rad1 {[%clk 00:26:53]}
{[%emt 00:00:56]} Qf7 {[%clk 00:07:25]} {[%emt 00:01:26]} 25. a3 {[%clk
00:26:13]} {[%emt 00:01:10]} h5 {[%clk 00:05:58]} {[%emt 00:01:58]} 26. Bf2
{[%clk 00:25:50]} {[%emt 00:00:52]} Rfd8 {[%clk 00:05:41]} {[%emt 00:00:47]} 27.
Rd3 {[%clk 00:24:10]} {[%emt 00:02:10]} Qc7 {[%clk 00:03:15]} {[%emt 00:02:57]}
28. Red1 {[%clk 00:22:25]} {[%emt 00:02:14]} Bf7 {[%clk 00:02:31]} {[%emt
00:01:14]} 29. Qd2 {[%clk 00:20:10]} {[%emt 00:02:45]} h4 {[%clk 00:01:19]}
{[%emt 00:01:42]} 30. e5 {[%clk 00:18:59]} {[%emt 00:01:41]} Qe7 {[%clk
00:00:45]} {[%emt 00:01:04]} 31. Re1 {[%clk 00:18:02]} {[%emt 00:01:28]} Bg6
{[%clk 00:00:39]} {[%emt 00:00:35]} 32. Rb3 {[%clk 00:17:12]} {[%emt 00:01:19]}
fxe5 {[%clk 00:00:49]} {[%emt 00:00:21]} 33. Qb2 {[%clk 00:17:37]} {[%emt
00:00:06]} e4 {[%clk 00:00:32]} {[%emt 00:00:47]} 34. Rxb7 {[%clk 00:17:12]}
{[%emt 00:00:55]} Rc7 {[%clk 00:00:48]} {[%emt 00:00:14]} 35. Rxc7 {[%clk
00:16:56]} {[%emt 00:00:46]} Qxc7 {[%clk 00:01:17]} {[%emt 00:00:01]} 36. fxe4
{[%clk 00:17:20]} {[%emt 00:00:06]} Kh6 {[%clk 00:01:11]} {[%emt 00:00:36]} 37.
Qd2 {[%clk 00:15:07]} {[%emt 00:02:42]} Qf4 {[%clk 00:00:37]} {[%emt 00:01:04]}
38. Be3 {[%clk 00:15:32]} {[%emt 00:00:05]} Qg4 {[%clk 00:01:05]} {[%emt
00:00:03]} 39. h3 {[%clk 00:10:58]} {[%emt 00:05:03]} Qg3 {[%clk 00:01:28]}
{[%emt 00:00:07]} 40. e5 {[%clk 00:09:44]} {[%emt 00:01:44]} c5 {[%clk
00:00:44]} {[%emt 00:01:14]} 41. Bf2 {[%clk 00:08:50]} {[%emt 00:01:24]} Qf4
{[%clk 00:29:45]} {[%emt 00:01:29]} 42. Qxf4 {[%clk 00:38:54]} {[%emt
00:00:26]} gxf4 {[%clk 00:30:06]} {[%emt 00:00:08]} 43. dxc5 {[%clk 00:39:22]}
{[%emt 00:00:04]} Kg5 {[%clk 00:29:45]} {[%emt 00:00:49]} 44. c6 {[%clk
00:28:48]} {[%emt 00:11:05]} Rc8 {[%clk 00:25:24]} {[%emt 00:04:51]} 45. Rc1
{[%clk 00:29:10]} {[%emt 00:00:08]} Rc7 {[%clk 00:23:04]} {[%emt 00:02:50]} 46.
Rc5 {[%clk 00:27:07]} {[%emt 00:02:33]} f3 {[%clk 00:10:29]} {[%emt 00:13:05]}
47. gxf3 {[%clk 00:27:32]} {[%emt 00:00:07]} a6 {[%clk 00:10:54]} {[%emt
00:00:05]} 48. e6+ {[%clk 00:24:01]} {[%emt 00:04:00]} Kf6 {[%clk 00:11:13]}
{[%emt 00:00:11]} 49. Bxh4+ {[%clk 00:24:19]} {[%emt 00:00:12]} Kxe6 {[%clk
00:11:37]} {[%emt 00:00:06]} 50. Bg3 {[%clk 00:24:44]} {[%emt 00:00:05]} Rc8
{[%clk 00:11:12]} {[%emt 00:00:55]} 51. c7 {[%clk 00:25:03]} {[%emt 00:00:12]}
Bd3 {[%clk 00:08:52]} {[%emt 00:02:50]} 52. Kf2 {[%clk 00:25:17]} {[%emt
00:00:16]} Kf6 {[%clk 00:07:02]} {[%emt 00:02:20]} 53. Ke3 {[%clk 00:25:32]}
{[%emt 00:00:14]} Bf5 {[%clk 00:07:28]} {[%emt 00:00:03]} 54. Rc6+ {[%clk
00:25:42]} {[%emt 00:00:21]} 1-0

[Event "NJSK 2026 Jeugd B"]
[Site "Helmond, Netherlands"]
[Date "2026.04.25"]
[Round "1.10"]
[White "Yantur, Arda"]
[Black "Frederiks, Jesse"]
[Result "0-1"]
[TimeControl "90min/40moves + 30min + 30sec/move"]
[WhiteTitle "-"]
[BlackTitle "-"]
[WhiteFideId "40102041"]
[BlackFideId "1095790"]
[WhiteElo "1750"]
[BlackElo "2018"]

1. e4 {[%clk 01:30:57]} {[%emt 00:00:02]} e5 {[%clk 01:30:53]} {[%emt
00:00:06]} 2. Nc3 {[%clk 01:31:22]} {[%emt 00:00:06]} Nf6 {[%clk 01:31:11]}
{[%emt 00:00:12]} 3. d4 {[%clk 01:31:45]} {[%emt 00:00:08]} exd4 {[%clk
01:31:13]} {[%emt 00:00:28]} 4. Qxd4 {[%clk 01:32:09]} {[%emt 00:00:07]} Nc6
{[%clk 01:31:36]} {[%emt 00:00:09]} 5. Qd3 {[%clk 01:32:21]} {[%emt 00:00:15]}
Bc5 {[%clk 01:31:22]} {[%emt 00:00:42]} 6. Bf4 {[%clk 01:31:56]} {[%emt
00:00:54]} d6 {[%clk 01:28:31]} {[%emt 00:03:23]} 7. f3 {[%clk 01:31:36]}
{[%emt 00:00:50]} Nh5 {[%clk 01:19:55]} {[%emt 00:09:06]} 8. Nge2 {[%clk
01:19:46]} {[%emt 00:12:21]} Nxf4 {[%clk 01:19:21]} {[%emt 00:01:03]} 9. Nxf4
{[%clk 01:20:05]} {[%emt 00:00:11]} O-O {[%clk 01:12:57]} {[%emt 00:06:54]} 10.
O-O-O {[%clk 01:19:52]} {[%emt 00:00:44]} Ne5 {[%clk 01:07:31]} {[%emt
00:05:56]} 11. Qd2 {[%clk 01:19:45]} {[%emt 00:00:36]} a5 {[%clk 01:02:54]}
{[%emt 00:05:07]} 12. Na4 {[%clk 01:05:40]} {[%emt 00:14:35]} Bb4 {[%clk
00:56:52]} {[%emt 00:06:32]} 13. Nc3 {[%clk 00:57:27]} {[%emt 00:08:43]} a4
{[%clk 00:52:52]} {[%emt 00:04:31]} 14. a3 {[%clk 00:49:16]} {[%emt 00:08:40]}
Bc5 {[%clk 00:52:10]} {[%emt 00:01:10]} 15. Bb5 {[%clk 00:41:39]} {[%emt
00:08:09]} c6 {[%clk 00:37:36]} {[%emt 00:15:04]} 16. Nxa4 {[%clk 00:35:00]}
{[%emt 00:07:10]} Bxa3 {[%clk 00:30:52]} {[%emt 00:07:13]} 17. bxa3 {[%clk
00:29:04]} {[%emt 00:06:27]} cxb5 {[%clk 00:31:12]} {[%emt 00:00:09]} 18. Nc3
{[%clk 00:19:51]} {[%emt 00:09:43]} Rxa3 {[%clk 00:24:33]} {[%emt 00:07:09]} 19.
Nb1 {[%clk 00:16:53]} {[%emt 00:03:29]} Ra6 {[%clk 00:23:31]} {[%emt 00:01:31]}
20. Nd3 {[%clk 00:10:20]} {[%emt 00:07:02]} Nc4 {[%clk 00:19:47]} {[%emt
00:04:15]} 21. Qc3 {[%clk 00:08:48]} {[%emt 00:02:02]} Be6 {[%clk 00:17:32]}
{[%emt 00:02:45]} 22. f4 {[%clk 00:08:34]} {[%emt 00:00:44]} Qb6 {[%clk
00:14:48]} {[%emt 00:03:14]} 23. Rde1 {[%clk 00:08:16]} {[%emt 00:00:48]} Rc8
{[%clk 00:14:04]} {[%emt 00:01:14]} 24. f5 {[%clk 00:06:57]} {[%emt 00:01:50]}
Ne5 {[%clk 00:10:29]} {[%emt 00:04:05]} 25. fxe6 {[%clk 00:05:16]} {[%emt
00:02:10]} Rxc3 {[%clk 00:10:26]} 26. exf7+ {[%clk 00:05:18]} {[%emt 00:01:01]}
Kxf7 {[%clk 00:10:14]} {[%emt 00:00:42]} 27. Nxe5+ {[%clk 00:05:20]} {[%emt
00:00:27]} dxe5 {[%clk 00:10:42]} {[%emt 00:00:03]} 28. Rhf1+ {[%clk 00:05:01]}
{[%emt 00:00:49]} Ke6 {[%clk 00:10:40]} {[%emt 00:00:32]} 29. Nxc3 {[%clk
00:05:26]} {[%emt 00:00:06]} Ra1+ {[%clk 00:10:47]} {[%emt 00:00:21]} 30. Kb2
{[%clk 00:04:37]} {[%emt 00:01:21]} Rxe1 {[%clk 00:11:10]} {[%emt 00:00:07]} 31.
Rxe1 {[%clk 00:05:04]} {[%emt 00:00:02]} b4 {[%clk 00:10:25]} {[%emt 00:01:16]}
32. Nd1 {[%clk 00:02:53]} {[%emt 00:02:41]} Qd4+ {[%clk 00:10:25]} {[%emt
00:00:31]} 33. Kb3 {[%clk 00:02:23]} {[%emt 00:01:00]} Qd2 {[%clk 00:10:35]}
{[%emt 00:00:18]} 34. Rg1 {[%clk 00:02:06]} {[%emt 00:00:49]} Qe2 {[%clk
00:10:27]} {[%emt 00:00:37]} 35. Kxb4 {[%clk 00:01:36]} {[%emt 00:01:00]} Qxc2
{[%clk 00:10:44]} {[%emt 00:00:13]} 36. Nc3 {[%clk 00:01:28]} {[%emt 00:00:37]}
b5 {[%clk 00:09:04]} {[%emt 00:02:11]} 37. Nxb5 {[%clk 00:00:32]} {[%emt
00:01:26]} Qxe4+ {[%clk 00:09:02]} {[%emt 00:00:31]} 38. Ka5 {[%clk 00:00:42]}
{[%emt 00:00:21]} Qe3 {[%clk 00:08:10]} {[%emt 00:01:21]} 39. Rd1 {[%clk
00:00:31]} {[%emt 00:00:42]} Qe2 {[%clk 00:07:50]} {[%emt 00:00:49]} 40. Rd6+
{[%clk 00:00:39]} {[%emt 00:00:23]} Ke7 {[%clk 00:07:40]} {[%emt 00:00:37]} 41.
Kb6 {[%clk 00:00:32]} {[%emt 00:00:41]} Qxb5+ {[%clk 00:08:02]} {[%emt
00:00:07]} 42. Kxb5 {[%clk 00:00:59]} {[%emt 00:00:03]} Kxd6 {[%clk 00:08:30]}
{[%emt 00:00:02]} 43. Kc4 {[%clk 00:01:18]} {[%emt 00:00:11]} Ke6 {[%clk
00:08:52]} {[%emt 00:00:08]} 44. g4 {[%clk 00:01:37]} {[%emt 00:00:11]} Kd6
{[%clk 00:07:10]} {[%emt 00:02:12]} 45. h4 {[%clk 00:01:27]} {[%emt 00:00:40]}
Kc6 {[%clk 00:07:22]} {[%emt 00:00:18]} 46. h5 {[%clk 00:29:09]} {[%emt
00:02:48]} h6 {[%clk 00:37:20]} {[%emt 00:00:32]} 47. Kd3 {[%clk 00:29:25]}
{[%emt 00:00:14]} Kd5 {[%clk 00:37:26]} {[%emt 00:00:25]} 48. Ke3 {[%clk
00:29:50]} {[%emt 00:00:06]} e4 {[%clk 00:37:46]} {[%emt 00:00:10]} 49. Kf4
{[%clk 00:30:02]} {[%emt 00:00:18]} Kd4 {[%clk 00:38:07]} {[%emt 00:00:08]} 50.
g5 {[%clk 00:30:27]} {[%emt 00:00:05]} e3 {[%clk 00:38:30]} {[%emt 00:00:07]}
51. gxh6 {[%clk 00:30:45]} {[%emt 00:00:12]} gxh6 {[%clk 00:38:55]} {[%emt
00:00:06]} 52. Kf5 {[%clk 00:31:10]} {[%emt 00:00:05]} e2 {[%clk 00:39:20]}
{[%emt 00:00:05]} 53. Kg6 {[%clk 00:31:33]} {[%emt 00:00:06]} e1=Q {[%clk
00:39:38]} {[%emt 00:00:12]} 54. Kxh6 {[%clk 00:32:00]} {[%emt 00:00:03]} Ke5
{[%clk 00:39:55]} {[%emt 00:00:13]} 55. Kg7 {[%clk 00:31:50]} {[%emt 00:00:40]}
Qg3+ {[%clk 00:40:20]} {[%emt 00:00:05]} 56. Kh7 {[%clk 00:31:57]} {[%emt
00:00:24]} Kf6 {[%clk 00:40:40]} {[%emt 00:00:09]} 0-1